[Event "DFMM-LV 2023"]
[Site "Braunfels"]
[Date "2023.06.11"]
[Round "5.3"]
[White "Kostak, Tetyana"]
[Black "Zozulia, Anna"]
[Result "1/2-1/2"]
[Annotator "TA"]
[ECO "B06"]
[WhiteElo "2117"]
[BlackElo "2236"]
[PlyCount "125"]
[EventDate "2023.06.09"]
[EventType "team-tourn"]
[EventCountry "GER"]
[SourceTitle "playchess.com"]
[Source "ChessBase"]
[SourceQuality "1"]
[TimeControl "40/5400+30:1800+30"]

{[%evp 9,125,-10,14,19,16,15,16,0,25,0,15,18,23,0,12,9,26,30,23,18,16,4,11,0,15,0,2,22,19,-32,-16,-16,-16,-16,-16,-28,-20,-36,0,0,0,0,0,0,0,-15,33,21,33,-119,-118,-116,-118,-285,-282,-275,-285,-282,-278,-286,-288,-351,-355,-362,-366,-331,-265,-360,-342,-339,-316,-349,-349,-346,-333,-395,-337,-496,-316,-537,-349,-1014,-1046,-1016,-957,-1231,-1215,-977,-443,-431,-412,-400,-396,-388,-375,-450,-443,-335,-214,-182,-156,-190,-188,-162,-154,-718,0,0,0,0,0,0,0,0,0,0,0,0]} 1. e4 {[%emt 0:00:03]} g6 {[%emt 0:01:01]} 2. b4 {[%emt 0:09:30]} Bg7 {[%emt 0:02:35]} 3. Nc3 {[%emt 0:00:09]} d6 {[%emt 0:08:26] [#]} 4. Nf3 $146 {[%emt 0:07:39]} ({Predecessor:} 4. Bb2 Nc6 5. a3 Nh6 6. Bc4 f5 7. Qb1 e6 8. Nge2 O-O 9. Qa2 Qe7 10. Nf4 {0-1 Logvinov,K (2108)-Sargissyan,S (2293) Elets-B 75th 2014 (9)}) 4... a5 {[%emt 0:08:42]} 5. b5 {[%emt 0:02:22]} c5 {[%emt 0:02:06]} 6. bxc6 {[%emt 0:06:37] B06: Modern Defence.} bxc6 {[%emt 0:01:00]} 7. Rb1 {[%emt 0:00:33]} Nf6 {[%emt 0:02:50]} 8. Be2 {[%emt 0:01:30]} O-O {[%emt 0:04:04]} 9. O-O {[%emt 0:00:14]} Nbd7 {[%emt 0:18:02]} 10. d4 {[%emt 0:03:28]} Qc7 {[%emt 0:01:50]} 11. Bf4 {[%emt 0:04:42]} e5 {[%emt 0:02:04]} 12. dxe5 {[%emt 0:01:33]} dxe5 {[%emt 0:00:16]} 13. Be3 {[%emt 0:02:37]} Ng4 {[%emt 0:07:48]} 14. Bc1 {[%emt 0:01:32]} Rd8 {[%emt 0:01:36]} 15. Qe1 {[%emt 0:00:44]} Nc5 {[%emt 0:01:20]} 16. Bg5 {[%emt 0:02:28]} Nf6 {[%emt 0:08:28]} 17. Bc4 {[%emt 0:03:47]} Be6 {[%emt 0:02:56]} 18. Qe2 {[%emt 0:00:22]} Rab8 {[%emt 0:00:36]} 19. h3 {[%emt 0:02:16]} ({White should try} 19. Be3 $11 Bxc4 20. Qxc4) 19... Rb4 $1 $15 {[%emt 0:02:16]} 20. Bxe6 {[%emt 0:05:32]} Nxe6 {[%emt 0:01:51]} 21. a3 {[%emt 0:00:16]} Rxb1 {[%emt 0:05:54]} 22. Rxb1 {[%emt 0:00:29]} Nxg5 {[%emt 0:00:25]} 23. Nxg5 {[%emt 0:00:07]} h6 {[%emt 0:00:24]} 24. Nf3 {[%emt 0:00:11]} Bf8 {[%emt 0:00:06]} 25. Qc4 {[%emt 0:01:18]} Rd7 {[%emt 0:02:20]} (25... Bxa3 $2 26. Nb5 Qe7 27. Nxa3 $18 (27. Qxc6 Bb4 $15)) 26. Rb3 {[%emt 0:03:44]} Kg7 {[%emt 0:01:09]} 27. Na4 {[%emt 0:03:20]} Qd6 {[%emt 0:06:07]} (27... Rd1+ $11 28. Kh2 Nd7) 28. Rd3 {[%emt 0:03:29]} Qc7 {[%emt 0:00:04]} 29. Rc3 $2 {[%emt 0:02:58]} (29. Nc5 $14 {keeps the upper hand.}) 29... Rd1+ $17 {[%emt 0:04:21]} 30. Kh2 {[%emt 0:00:06] [#]} Rd4 $1 {[%emt 0:00:45][%mdl 64] Double Attack} 31. Qb3 {[%emt 0:08:22]} (31. Qxc6 $2 Qxc6 32. Rxc6 Rxa4 $19) (31. Nxd4 $17 exd4+ {[%mdl 64] Discovered Attack} 32. Rg3) 31... Nxe4 $1 $19 {[%emt 0:00:31]} (31... Rxe4 32. Kg1 $17) 32. Re3 {[%emt 0:03:43]} Nd2 {[%emt 0:02:00]} 33. Nxd2 {[%emt 0:02:02]} Rxd2 {[%emt 0:00:03]} 34. Qc3 {[%emt 0:03:49]} Rxf2 {[%emt 0:00:38]} 35. Kg1 {[%emt 0:00:09]} Rf5 {[%emt 0:00:27]} 36. Nc5 {[%emt 0:00:40]} Qa7 {[%emt 0:01:52]} 37. Ne4 {[%emt 0:00:24]} Qd4 {[%emt 0:00:31]} 38. g3 {[%emt 0:08:42]} Qd1+ {[%emt 0:01:07]} 39. Re1 {[%emt 0:02:33]} Qd5 {[%emt 0:00:14]} 40. Re3 {[%emt 0:01:40]} h5 {[%emt 0:00:22][%cal Oh5h4]} (40... Qb5 $2 41. Qe1 $19) 41. h4 {[%emt 0:34:13]} Qb5 {[%emt 0:01:53]} 42. Kh2 {[%emt 0:00:00]} Be7 {[%emt 0:04:40] White must now prevent ...Rf1.} 43. Rd3 {[%emt 0:00:00]} (43. Re1 $142) 43... Qa4 {[%emt 0:01:01]} 44. Nd2 {[%emt 0:00:00]} (44. Re3 {was the only defense.}) 44... Bf6 {[%emt 0:08:48]} 45. Rd6 $2 {[%emt 0:00:00]} (45. Re3) 45... Qg4 {[%emt 0:01:13]} 46. Qe3 {[%emt 0:00:00] [#] Inhibits Qe2+.} Bxh4 $1 {[%emt 0:10:03] And now ...Bg5 would win.} 47. gxh4 {[%emt 0:00:00]} (47. Rd3 Bg5) 47... Qxh4+ {[%emt 0:00:03]} 48. Kg2 {[%emt 0:00:00]} Rg5+ {[%emt 0:02:51]} (48... Rf4 $142 49. Qxe5+ Kh7 50. Qxf4 Qxf4) 49. Kf1 {[%emt 0:00:00]} Qh1+ {[%emt 0:00:10]} 50. Ke2 {[%emt 0:00:00]} Qh2+ {[%emt 0:00:46]} (50... Rf5 $2 51. Rd3 $19) 51. Ke1 {[%emt 0:00:00]} Rg2 {[%emt 0:01:28]} ({But not} 51... Rg1+ $2 52. Nf1 $17) 52. Nf1 {[%emt 0:00:00]} Qh4+ {[%emt 0:00:31]} 53. Kd1 {[%emt 0:00:00]} Qg4+ {[%emt 0:01:21]} 54. Ke1 {[%emt 0:00:00]} Qf5 {[%emt 0:01:46]} 55. Rxc6 {[%emt 0:00:41]} h4 {[%emt 0:00:02][%cal Bh5h4,Bh4h3][%mdl 32]} (55... Rxc2 $2 56. Ng3 Rxc6 57. Nxf5+ gxf5 58. Qxe5+ Kg6 59. Qxa5 $18) 56. Rc5 {[%emt 0:02:50]} h3 {[%emt 0:01:01] ...h2 would be deadly.} ({Worse is} 56... Rxc2 57. Rxc2 Qxc2 58. Qxe5+ Kg8 59. Qe8+ (59. Ne3 Qc1+ 60. Ke2 Qxa3 $11) 59... Kg7 60. Qe5+ Kg8 61. Qe8+ (61. Ne3 Qc1+ 62. Ke2 Qxa3 $11) 61... Kg7 62. Qe5+ $11) 57. Rxe5 $2 {[%emt 0:00:24] [#]} (57. Qxe5+ $17 Qxe5+ 58. Rxe5) 57... Qxc2 $2 {[%emt 0:00:31]} (57... Qf6 $1 $19 58. Rd5 Rxc2) 58. Rc5 $1 $36 {[%emt 0:00:08][%mdl 2048] Black is under pressure. The position is equal.} Qb1+ {[%emt 0:01:06]} 59. Rc1 {[%emt 0:00:10] Really sharp!} Qf5 {[%emt 0:00:43]} (59... Qb2 $5 60. Qc3+ $8 f6 61. Qxb2 Rxb2 $11) 60. Qd4+ {[%emt 0:04:02]} Kh7 {[%emt 0:00:35]} 61. Qh4+ {[%emt 0:00:29]} Kg7 {[%emt 0:00:05] ( -> ...Qe6+)} 62. Qd4+ {[%emt 0:00:05]} Kh7 {[%emt 0:00:23] ...g5 is the strong threat.} 63. Qh4+ {[%emt 0:00:07] White happily takes the draw.   Weighted Error Value: White=0.55/Black=0.38} 1/2-1/2

[Event "DFMM-LV 2023"]
[Site "Braunfels"]
[Date "2023.06.11"]
[Round "5.4"]
[White "Cosma, Elena-Luminita"]
[Black "Valkova, Angelika"]
[Result "1/2-1/2"]
[Annotator "TA"]
[ECO "B08"]
[WhiteElo "2222"]
[BlackElo "2062"]
[PlyCount "75"]
[EventDate "2023.06.09"]
[EventType "team-tourn"]
[EventCountry "GER"]
[SourceTitle "playchess.com"]
[Source "ChessBase"]
[SourceQuality "1"]
[TimeControl "40/5400+30:1800+30"]

{[%evp 11,75,20,19,15,29,22,24,10,16,16,12,7,13,5,32,34,36,20,53,35,91,96,89,80,128,101,199,83,84,78,90,85,153,151,151,139,140,140,171,163,260,54,55,63,75,10,14,4,5,4,4,3,7,4,5,0,0,0,0,0,7,0,0,0,0,0]} 1. Nf3 {[%emt 0:00:03]} d6 {[%emt 0:00:09]} 2. d4 {[%emt 0:00:23]} g6 {[%emt 0:00:12]} 3. e4 {[%emt 0:01:05]} Nf6 {[%emt 0:00:23]} 4. Nc3 {[%emt 0:03:04]} Bg7 {[%emt 0:00:20]} 5. h3 {[%emt 0:00:07]} O-O {[%emt 0:00:17]} 6. Be3 {[%emt 0:00:04]} d5 {[%emt 0:00:27]} 7. exd5 {[%emt 0:04:04] B08: Pirc Defence: Classical System.} Nxd5 {[%emt 0:00:07]} 8. Nxd5 {[%emt 0:00:06]} Qxd5 {[%emt 0:00:06]} 9. c3 {[%emt 0:00:03] [#] White has an edge.} b6 $146 {[%emt 0:01:07]} ({Predecessor:} 9... Nc6 10. Be2 e5 11. dxe5 Qxd1+ 12. Rxd1 Nxe5 13. O-O Nxf3+ 14. Bxf3 c6 15. Rfe1 Be6 {½-½ Martirosyan,H (2617)-Onischuk,V (2633) Titled Tuesday intern op 23rd June blitz 2020 (7)}) 10. Be2 {[%emt 0:02:19][%cal Of3e5]} Bb7 {[%emt 0:00:18]} 11. O-O {[%emt 0:00:14]} Nd7 {[%emt 0:06:58]} 12. Qc2 {[%emt 0:15:20]} Rad8 {[%emt 0:11:02]} 13. Rad1 {[%emt 0:09:29]} Nf6 {[%emt 0:06:03]} 14. c4 {[%emt 0:05:26]} Qd6 {[%emt 0:02:08]} 15. Rfe1 {[%emt 0:09:06]} h6 {[%emt 0:10:04]} ({Black should play} 15... e6 $14) 16. Qc1 $16 {[%emt 0:03:38]} g5 {[%emt 0:02:10]} 17. d5 {[%emt 0:13:36][%cal Bd4d5,Bd5e6,Be6d7][%mdl 32]} c5 {[%emt 0:03:58] Wards off Nd4} (17... e5 $142) 18. Bd3 {[%emt 0:06:06]} Nd7 {[%emt 0:06:55]} (18... e6 $16) 19. Qc2 {[%emt 0:01:32]} (19. h4 $18 {and White stays clearly on top.}) 19... Qf6 {[%emt 0:03:59] Black is weak on the light squares} 20. Bc1 {[%emt 0:01:42]} e6 {[%emt 0:02:29]} 21. dxe6 {[%emt 0:01:24]} Bxf3 {[%emt 0:05:08]} ({Better is} 21... fxe6 22. Re3 Bxf3 23. Rxf3 Qe7) 22. Bh7+ {[%emt 0:01:15]} (22. gxf3 Ne5 23. Be4 Qxe6 $15) (22. exd7 $6 Bxd1 23. Rxd1 Qe7 $11) 22... Kh8 {[%emt 0:00:11]} 23. Rxd7 {[%emt 0:00:08] White is more active.} Rxd7 {[%emt 0:03:07]} 24. exd7 {[%emt 0:00:07]} Bc6 {[%emt 0:00:22]} 25. Bf5 {[%emt 0:00:09]} Qd6 {[%emt 0:01:41]} (25... Rd8 $142 26. Rd1 Kg8) 26. Rd1 $2 {[%emt 0:16:15] [#]} (26. Qd1 $18 Qf6 27. Qg4) 26... Bd4 $14 {[%emt 0:00:05]} 27. Be3 {[%emt 0:00:06] Hoping for Qc3.} Bxd7 {[%emt 0:00:45]} 28. Bxd7 {[%emt 0:03:46]} (28. Be4 $16) 28... Qxd7 $11 {[%emt 0:00:06] [#] The position is equal.} 29. b4 $1 {[%emt 0:00:09]} Qe6 {[%emt 0:08:20]} (29... Qe7 30. bxc5) 30. bxc5 {[%emt 0:01:07][%mdl 64] Remove Defender} bxc5 {[%emt 0:04:31]} ({Not} 30... Bxe3 31. Rd6 (31. fxe3 Qxe3+ 32. Qf2 Qxf2+ 33. Kxf2 Rc8 $11) 31... Bxc5 32. Rxe6 fxe6 33. Qg6 $18) 31. Bxd4+ {[%emt 0:00:54]} cxd4 {[%emt 0:00:05][%mdl 4096] Endgame KQR-KQR} 32. c5 {[%emt 0:00:03]} (32. Rxd4 $2 {too greedy.} Qe1+ 33. Kh2 Qe5+ 34. g3 Qxd4 $19) 32... Rc8 {[%emt 0:01:35]} 33. Qa4 {[%emt 0:01:10]} (33. Rxd4 $2 {is the wrong capture.} Qe1+ 34. Kh2 Qe5+ $19) 33... Rxc5 {[%emt 0:04:37]} 34. Qxd4+ {[%emt 0:00:06]} Qe5 {[%emt 0:00:57]} 35. Qd7 {[%emt 0:01:51]} Rc7 {[%emt 0:01:27]} 36. Qd2 {[%emt 0:00:08]} Re7 {[%emt 0:02:18]} 37. a4 {[%emt 0:00:34]} Kg7 {[%emt 0:04:32]} 38. Qb4 {[%emt 0:01:03] Blacks defense is rewarded with a draw.   Weighted Error Value: White=0.23 (precise) /Black=0.20 (precise) .  Loses game:     	---       	---        Missed win:     	White=1     	---        Mistake:       	White=2     	Black=5      Inaccurate:     	---       	Black=2      OK:         	White=10    	Black=9      Best:        	White=1     	Black=4      Strong:       	---       	---        Brilliant:      	---       	---} 1/2-1/2

[Event "DFMM-LV 2023"]
[Site "Braunfels"]
[Date "2023.06.11"]
[Round "5.5"]
[White "Gheng, Simona"]
[Black "Hess, Olena"]
[Result "1/2-1/2"]
[Annotator "TA"]
[ECO "C41"]
[WhiteElo "1918"]
[BlackElo "2078"]
[PlyCount "28"]
[EventDate "2023.06.09"]
[EventType "team-tourn"]
[EventCountry "GER"]
[SourceTitle "playchess.com"]
[Source "ChessBase"]
[SourceQuality "1"]
[TimeControl "40/5400+30:1800+30"]

{[%evp 14,28,38,0,0,0,-4,-32,22,0,8,0,0,0,0,0,25]} 1. e4 {[%emt 0:00:05]} d6 {[%emt 0:00:11]} 2. d4 {[%emt 0:00:21]} Nf6 {[%emt 0:00:16]} 3. Nc3 {[%emt 0:02:27]} e5 {[%emt 0:00:30]} 4. Nf3 {[%emt 0:00:31]} Nbd7 {[%emt 0:00:23]} 5. Bc4 {[%emt 0:01:03]} Be7 {[%emt 0:00:07]} 6. O-O {[%emt 0:11:22]} O-O {[%emt 0:00:08]} 7. h3 {[%emt 0:01:44]} c6 {[%emt 0:00:12]} 8. dxe5 {[%emt 0:00:59]} (8. a4 $5) 8... dxe5 {[%emt 0:02:33] C41: Philidor Defence.} 9. Qe2 {[%emt 0:01:51]} b5 {[%emt 0:02:42]} 10. Bb3 {[%emt 0:06:20]} Bb7 {[%emt 0:01:10] [#]} (10... Qc7 $15) 11. a3 $146 {[%emt 0:02:38] The position is equal.} (11. Rd1 $5 {[%cal Rf3e5]}) ({Predecessor:} 11. Be3 a6 12. Rad1 Qc7 13. Bg5 h6 14. Bh4 Rfe8 15. a3 Rac8 16. Rd2 Rcd8 17. Rfd1 {1-0 Wendl,P (1519)-Szarka,T (1363) Steyr Landesliga 1819 2018 (6.8)}) 11... Qc7 {[%emt 0:01:46]} 12. Re1 {[%emt 0:01:46]} Nc5 {[%emt 0:02:15]} 13. Bg5 {[%emt 0:03:25]} a5 {[%emt 0:12:15]} 14. Qe3 {[%emt 0:02:41]} Nh5 {[%emt 0:27:08] An uneventful encounter.   Weighted Error Value: White=0.14 (very precise) /Black=0.20 (precise)} 1/2-1/2

[Event "DFMM-LV 2023"]
[Site "Braunfels"]
[Date "2023.06.11"]
[Round "5.6"]
[White "Trunz, Michelle"]
[Black "Heil, Marina"]
[Result "1/2-1/2"]
[Annotator "TA"]
[ECO "A96"]
[WhiteElo "2010"]
[BlackElo "1866"]
[PlyCount "100"]
[EventDate "2023.06.09"]
[EventType "team-tourn"]
[EventCountry "GER"]
[SourceTitle "playchess.com"]
[Source "ChessBase"]
[SourceQuality "1"]
[TimeControl "40/5400+30:1800+30"]

{[%evp 17,100,19,35,18,31,8,25,24,25,-10,7,0,12,11,16,23,22,-20,0,0,61,61,61,61,61,69,75,0,52,0,0,0,0,0,0,0,0,-50,-56,-50,-49,-96,-4,-12,-4,-241,-248,-247,-106,-95,-85,-303,0,-185,-187,-181,-174,-149,-165,-137,-109,-193,-192,-225,-206,-392,-443,-442,-439,-410,-279,-283,-239,-409,-277,-437,-398,-563,-494,-486,-455,-727,-101,-101,-101]} 1. d4 {[%emt 0:00:02]} f5 {[%emt 0:00:07]} 2. c4 {[%emt 0:00:04]} Nf6 {[%emt 0:00:05]} 3. Nf3 {[%emt 0:00:05]} e6 {[%emt 0:00:07]} 4. g3 {[%emt 0:00:18]} Be7 {[%emt 0:00:10]} 5. Bg2 {[%emt 0:00:09]} O-O {[%emt 0:00:11]} 6. O-O {[%emt 0:00:04]} d6 {[%emt 0:00:14]} 7. Nc3 {[%emt 0:01:00]} Ne4 {[%emt 0:00:26]} 8. Qc2 {[%emt 0:00:24]} Nxc3 {[%emt 0:00:22]} 9. Qxc3 {[%emt 0:00:25]} Bf6 {[%emt 0:01:02]} 10. b3 {[%emt 0:01:41] A96: Classical Dutch: Fluid Systems: Early deviations.} Nc6 {[%emt 0:03:10]} 11. e3 {[%emt 0:01:22]} Qe8 {[%emt 0:01:23]} 12. Bb2 {[%emt 0:00:34] White has an edge.} e5 {[%emt 0:03:54] [#]} 13. Rfe1 $146 {[%emt 0:01:52]} ({Predecessor:} 13. Rad1 Qh5 14. dxe5 dxe5 15. c5 f4 16. Qc4+ Kh8 17. exf4 exf4 18. Bxf6 Rxf6 19. b4 {1-0 Freitag,M (2356)-Fajdetic,H (2151) Titled Tuesday intern op 03rd Nov blitz 2020 (3)}) 13... Qh5 {[%emt 0:03:15]} 14. Rad1 {[%emt 0:01:51]} e4 {[%emt 0:02:53]} 15. Nd2 {[%emt 0:00:18]} a5 {[%emt 0:14:54]} 16. a3 {[%emt 0:00:58] Wards off Nb4} Be6 {[%emt 0:09:55]} 17. Nb1 {[%emt 0:01:18]} Nd8 {[%emt 0:00:47]} 18. Qc2 {[%emt 0:01:39]} Nf7 {[%emt 0:04:43]} (18... a4 $11) 19. d5 $14 {[%emt 0:03:16] Strongly threatening Bxf6.} Bd7 {[%emt 0:02:10]} 20. Bxf6 {[%emt 0:00:18]} gxf6 {[%emt 0:00:02]} 21. Nc3 {[%emt 0:01:19]} Ne5 {[%emt 0:00:32]} 22. Qe2 {[%emt 0:01:41]} ({Better is} 22. Ne2 $16) 22... Qh6 {[%emt 0:05:08]} (22... Qxe2 $11 23. Nxe2 a4) 23. f3 {[%emt 0:02:49]} (23. Ra1 $14) 23... exf3 $11 {[%emt 0:01:18]} 24. Bxf3 {[%emt 0:00:04]} Rae8 {[%emt 0:00:21]} 25. Rd4 {[%emt 0:01:57]} Kh8 {[%emt 0:01:54]} 26. Rh4 {[%emt 0:00:55]} Qg5 {[%emt 0:00:15]} 27. b4 {[%emt 0:08:01]} (27. Bh5 $11) 27... axb4 $15 {[%emt 0:02:57]} 28. axb4 {[%emt 0:01:14]} Re7 {[%emt 0:04:58]} 29. Rf4 {[%emt 0:04:23]} (29. Bh5 $15 {is more appropriate.}) 29... Rfe8 {[%emt 0:01:39]} (29... Ng6 $1 $17 {[%cal Rg6f4]} 30. Qf2 (30. Rd4 Rfe8 $17) 30... Nxf4 31. exf4 Rxe1+ 32. Qxe1 Qg7) 30. Bh5 $1 $11 {[%emt 0:03:28]} Ra8 {[%emt 0:01:57]} 31. Qd1 $2 {[%emt 0:06:14]} (31. Ref1 $11 {and White is okay.}) 31... Ra3 $19 {[%emt 0:01:22]} 32. Nb1 {[%emt 0:02:53] [#]} Ra4 {[%emt 0:03:59]} (32... Rd3 $1 $19 {[%cal Rd3d1] and Black stays clearly on top.} 33. Qe2 b5) 33. c5 $17 {[%emt 0:01:41][%cal Oc5c6]} Ra1 {[%emt 0:02:22]} 34. Qe2 $2 {[%emt 0:07:30]} (34. c6 $17 bxc6 35. Bf3) 34... Qg8 $2 {[%emt 0:03:23]} ({Black should play} 34... Bb5 $1 $19 {[%cal Rb5e2]} 35. Qb2 Nd3 36. Qxa1 Nxf4 {[%mdl 64] Pin} 37. cxd6 cxd6) 35. Nc3 {[%emt 0:02:14] [#]} (35. Qd2 $11 {and White stays safe.}) 35... Rxe1+ $1 $19 {[%emt 0:01:03]} 36. Qxe1 {[%emt 0:00:04]} Nd3 $1 {[%emt 0:00:10][%csl LRc5,LRe1,LRf4]} 37. Qa1 {[%emt 0:00:55]} Nxf4 {[%emt 0:02:05]} 38. exf4 {[%emt 0:00:05]} Kg7 {[%emt 0:00:59]} 39. Qa5 {[%emt 0:03:06]} (39. Kf2 $17 {was necessary.}) 39... Be8 {[%emt 0:02:16]} 40. Bd1 {[%emt 0:01:42]} Bf7 {[%emt 0:01:41]} 41. cxd6 $2 {[%emt 0:33:32]} (41. Kf2) 41... cxd6 {[%emt 0:32:24]} 42. Qb6 {[%emt 0:00:54]} Qc8 {[%emt 0:05:00]} (42... Bxd5 $2 {too greedy.} 43. Qxd6 Qe6 44. Qxe6 Bxe6 45. Kf2 $19) 43. Qd4 {[%emt 0:02:43]} Qe8 {[%emt 0:01:55] And now ...Qa8 would win.} 44. Kf2 {[%emt 0:00:43]} Bh5 {[%emt 0:03:24]} 45. Ba4 $2 {[%emt 0:02:08]} (45. Bxh5 Qxh5 46. Kg2) 45... Qc8 {[%emt 0:00:00] ...Bg4 would be deadly.} 46. Qd3 {[%emt 0:00:00]} (46. Kg2 $142) 46... Qa8 {[%emt 0:00:00]} 47. Qd4 {[%emt 0:00:00] Against Qa7} (47. Kg2 {keeps fighting.}) 47... Bg4 {[%emt 0:00:00][%cal Ob7b5] White must now prevent ...b5!} 48. Qb6 {[%emt 0:00:00]} Qc8 {[%emt 0:00:00]} 49. Qxd6 {[%emt 0:00:00]} (49. Qd4 $142 Rc7 50. h3 Rxc3 51. hxg4 fxg4 52. Bd1) 49... Rc7 $2 {[%emt 0:00:00]} (49... Kf7 $19 {has better winning chances.} 50. Qc5 Rc7 {[%mdl 64] Skewer}) 50. Ne2 $17 {[%emt 0:00:00]} Bxe2 {[%emt 0:00:00] Weighted Error Value: White=0.61/Black=0.47} 1/2-1/2